fUST/lending_fUST_20241004
["ID","MTS","AMOUNT","RATE_DAILY","PERIOD"]
[339807309,1727998241270,-564.32057,0.00013507,2]
[339807310,1727998241285,-564.32057,0.00013507,2]
[339807311,1727998241295,-564.32057,0.00013507,2]
[339807312,1727998241305,-564.32057,0.00013507,2]
[339807313,1727998241315,-151.0,0.00013507,2]
[339807314,1727998241328,-151.0,0.00013507,2]
[339807315,1727998241338,-151.0,0.00013507,2]
[339807316,1727998241349,-151.0,0.00013507,2]
[339807317,1727998241359,-151.0,0.00013507,2]
[339807318,1727998241369,-151.0,0.00013507,2]
[339807319,1727998241379,-151.0,0.00013507,2]
[339807320,1727998241388,-151.0,0.00013507,2]
[339807321,1727998241398,-168.660808,0.00013507,2]
[339807322,1727998241408,-151.0,0.00013507,2]
[339807323,1727998241418,-151.0,0.00013507,2]
[339807324,1727998241428,-151.0,0.00013507,2]
[339807325,1727998241438,-168.449058,0.00013507,2]
[339807326,1727998241447,-151.0,0.00013507,2]
[339807327,1727998241457,-266.847623,0.00013507,2]
[339807328,1727998241467,-196.084553,0.00013507,2]
[339807329,1727998241477,-196.084553,0.00013507,2]
[339807330,1727998241486,-196.084553,0.00013507,2]
[339807331,1727998241498,-196.084553,0.00013507,2]
[339807332,1727998241507,-196.084553,0.00013507,2]
[339807333,1727998241517,-196.084553,0.00013507,2]
[339807334,1727998241527,-2476.3652436,0.00013509,2]
[339807335,1727998241538,-1846.585318,0.0001351,2]
[339807336,1727998241550,-1846.585318,0.0001351,2]
[339807337,1727998241560,-952.505055,0.0001351,2]
[339807338,1727998241570,-952.505055,0.0001351,2]
[339807339,1727998241580,-151.0,0.0001351,2]
[339807340,1727998241590,-151.0,0.0001351,2]
[339807341,1727998241600,-15815.11317679,0.00013512,2]
[339807342,1727998241609,-3621.5607088,0.00013512,2]
[339807343,1727998241619,-204949.18968165,0.00013512,2]
[339807344,1727998241630,-1846.585318,0.00013512,2]
[339807345,1727998241640,-1846.585318,0.00013512,2]
[339807346,1727998241651,-151.0,0.00013512,2]
[339807347,1727998241660,-952.505055,0.00013512,2]
[339807348,1727998241671,-952.505055,0.00013512,2]
[339807349,1727998241680,-490.432937,0.00013512,2]
[339807350,1727998241690,-490.432937,0.00013512,2]
[339807351,1727998241700,-151.0,0.00013512,2]
[339807352,1727998241710,-151.0,0.00013512,2]
[339807353,1727998241720,-151.0,0.00013512,2]
[339807354,1727998241731,-151.0,0.00013512,2]
[339807355,1727998241741,-151.0,0.00013512,2]
[339807356,1727998241751,-151.0,0.00013512,2]
[339807357,1727998241761,-230.636842,0.00013512,2]
[339807358,1727998241771,-151.0,0.00013512,2]
[339807359,1727998241782,-151.0,0.00013512,2]
[339807360,1727998241792,-1476.099036,0.00013512,2]
[339807361,1727998241802,-1476.099036,0.00013512,2]
[339807362,1727998241812,-212.824329,0.00013512,2]
[339807363,1727998241823,-212.824329,0.00013512,2]
[339807364,1727998241833,-151.0,0.00013512,2]
[339807365,1727998241842,-264.266205,0.00013512,2]
[339807366,1727998241853,-264.266205,0.00013512,2]
[339807367,1727998241863,-564.32057,0.00013512,2]
[339807368,1727998241873,-564.32057,0.00013512,2]
[339807369,1727998241883,-151.0,0.00013512,2]
[339807370,1727998241897,-151.0,0.00013512,2]
[339807371,1727998241907,-151.0,0.00013512,2]
[339807372,1727998241920,-196.084553,0.00013512,2]
[339807373,1727998241930,-196.084553,0.00013512,2]
[339807374,1727998241940,-151.0,0.00013517,2]
[339807375,1727998241950,-490.432937,0.00013517,2]
[339807376,1727998241962,-490.432937,0.00013517,2]
[339807377,1727998241973,-151.0,0.00013517,2]
[339807378,1727998241984,-262.442052,0.00013517,2]
[339807379,1727998241995,-151.0,0.00013517,2]
[339807380,1727998242005,-151.0,0.00013517,2]
[339807381,1727998242015,-151.0,0.00013517,2]
[339807382,1727998242026,-151.0,0.00013517,2]
[339807383,1727998242035,-151.0,0.00013517,2]
[339807384,1727998242045,-151.0,0.00013517,2]
[339807385,1727998242056,-1476.099036,0.00013517,2]
[339807386,1727998242066,-1476.099036,0.00013517,2]
[339807387,1727998242077,-212.824329,0.00013517,2]
[339807388,1727998242087,-212.824329,0.00013517,2]
[339807389,1727998242097,-264.266205,0.00013517,2]
[339807390,1727998242107,-264.266205,0.00013517,2]
[339807391,1727998242117,-151.0,0.00013517,2]
[339807392,1727998242127,-1846.585318,0.00013518,2]
[339807393,1727998242137,-1846.585318,0.00013518,2]
[339807394,1727998242147,-1846.585318,0.00013518,2]
[339807395,1727998242157,-1846.585318,0.00013518,2]
[339807396,1727998242167,-151.0,0.00013518,2]
[339807397,1727998242177,-952.505055,0.00013518,2]
[339807398,1727998242187,-952.505055,0.00013518,2]
[339807399,1727998242197,-952.505055,0.00013518,2]
[339807400,1727998242207,-952.505055,0.00013518,2]
[339807401,1727998242217,-490.432937,0.00013518,2]
[339807402,1727998242227,-490.432937,0.00013518,2]
[339807403,1727998242238,-151.0,0.00013518,2]
[339807404,1727998242248,-151.0,0.00013518,2]
[339807405,1727998242258,-151.0,0.00013518,2]
[339807406,1727998242268,-151.0,0.00013518,2]
[339807407,1727998242278,-151.0,0.00013518,2]
[339807408,1727998242287,-196.084553,0.00013518,2]
[339807409,1727998242297,-196.084553,0.00013518,2]
[339807410,1727998242306,-151.0,0.00013519,2]
[339807411,1727998242316,-1263.517645,0.00013519,2]
[339807412,1727998242327,-151.0,0.00013519,2]
[339807413,1727998242336,-151.0,0.00013519,2]
[339807414,1727998242346,-151.0,0.00013519,2]
[339807415,1727998242355,-151.0,0.00013519,2]
[339807416,1727998242365,-369.245172,0.00013519,2]
[339807417,1727998242375,-267.735556,0.00013519,2]
[339807418,1727998242385,-369.245172,0.00013519,2]
[339807419,1727998242395,-267.735556,0.00013519,2]
[339807420,1727998242405,-151.0,0.00013519,2]
[339807421,1727998242414,-151.0,0.00013519,2]
[339807422,1727998242424,-151.0,0.00013519,2]
[339807423,1727998242434,-647.541838,0.00013519,2]
[339807424,1727998242444,-647.541838,0.00013519,2]
[339807425,1727998242455,-283.269682,0.00013519,2]
[339807426,1727998242466,-283.269682,0.00013519,2]
[339807427,1727998242475,-1605.071196,0.00013519,2]
[339807428,1727998242486,-1605.071196,0.00013519,2]
[339807429,1727998242496,-370.149733,0.00013519,2]
[339807430,1727998242506,-151.0,0.00013519,2]
[339807431,1727998242516,-151.0,0.00013519,2]
[339807432,1727998242527,-362.588099,0.00013519,2]
[339807433,1727998242538,-362.588099,0.00013519,2]
[339807434,1727998242548,-151.0,0.00013519,2]
[339807435,1727998242558,-1846.585318,0.00013519,2]
[339807436,1727998242567,-1846.585318,0.00013519,2]
[339807437,1727998242577,-151.0,0.00013519,2]
[339807438,1727998242587,-151.0,0.00013519,2]
[339807439,1727998242598,-1045.753443,0.00013519,2]
[339807440,1727998242608,-1045.753443,0.00013519,2]
[339807441,1727998242618,-679.611556,0.00013519,2]
[339807442,1727998242628,-679.611556,0.00013519,2]
[339807443,1727998242639,-952.505055,0.00013519,2]
[339807444,1727998242650,-952.505055,0.00013519,2]
[339807445,1727998242660,-490.432937,0.00013519,2]
[339807446,1727998242670,-490.432937,0.00013519,2]
[339807447,1727998242681,-490.432937,0.00013519,2]
[339807448,1727998242691,-490.432937,0.00013519,2]
[339807449,1727998242702,-774.167472,0.00013519,2]
[339807450,1727998242712,-774.167472,0.00013519,2]
[339807451,1727998242723,-151.0,0.00013519,2]
[339807452,1727998242733,-151.0,0.00013519,2]
[339807453,1727998242742,-151.0,0.00013519,2]
[339807455,1727998242753,-151.0,0.00013519,2]
[339807456,1727998242763,-151.0,0.00013519,2]
[339807457,1727998242773,-178.914756,0.00013519,2]
[339807460,1727998242789,-151.0,0.00013519,2]
[339807462,1727998242805,-151.0,0.00013519,2]
[339807464,1727998242816,-151.0,0.00013519,2]
[339807465,1727998242827,-151.0,0.00013519,2]
[339807466,1727998242839,-212.824329,0.00013519,2]
[339807467,1727998242849,-212.824329,0.00013519,2]
[339807468,1727998242859,-151.0,0.00013519,2]
[339807469,1727998242870,-264.266205,0.00013519,2]
[339807470,1727998242881,-264.266205,0.00013519,2]
[339807471,1727998242891,-564.32057,0.00013519,2]
[339807472,1727998242902,-564.32057,0.00013519,2]
[339807473,1727998242916,-151.0,0.00013519,2]
[339807474,1727998242927,-151.0,0.00013519,2]
[339807475,1727998242938,-151.0,0.00013519,2]
[339807476,1727998242949,-196.084553,0.00013519,2]
[339807477,1727998242960,-196.084553,0.00013519,2]
[339807481,1727998243159,-2476.3652436,0.00013521,2]
[339807482,1727998243195,-2255.07220922,0.00013521,2]
[339807483,1727998243206,-483.39852456,0.00013524,2]
[339807484,1727998243217,-151.0,0.00013529,2]
[339807485,1727998243228,-1263.517645,0.00013529,2]
[339807487,1727998243238,-151.0,0.00013529,2]
[339807489,1727998243250,-151.0,0.00013529,2]
[339807490,1727998243261,-151.0,0.00013529,2]
[339807491,1727998243271,-151.0,0.00013529,2]
[339807493,1727998243281,-369.245172,0.00013529,2]
[339807495,1727998243291,-267.735556,0.00013529,2]
[339807496,1727998243301,-369.245172,0.00013529,2]
[339807498,1727998243314,-267.735556,0.00013529,2]
[339807499,1727998243325,-151.0,0.00013529,2]
[339807500,1727998243339,-151.0,0.00013529,2]
[339807502,1727998243349,-151.0,0.00013529,2]
[339807503,1727998243359,-647.541838,0.00013529,2]
[339807504,1727998243369,-647.541838,0.00013529,2]
[339807505,1727998243379,-151.0,0.00013529,2]
[339807506,1727998243389,-151.0,0.00013529,2]
[339807507,1727998243399,-151.0,0.00013529,2]
[339807508,1727998243409,-283.269682,0.00013529,2]
[339807509,1727998243419,-283.269682,0.00013529,2]
[339807510,1727998243430,-1605.071196,0.00013529,2]
[339807511,1727998243441,-1605.071196,0.00013529,2]
[339807512,1727998243452,-370.149733,0.00013529,2]
[339807513,1727998243462,-151.0,0.00013529,2]
[339807514,1727998243472,-151.0,0.00013529,2]
[339807515,1727998243481,-362.588099,0.00013529,2]
[339807516,1727998243491,-362.588099,0.00013529,2]
[339807517,1727998243500,-151.0,0.00013529,2]
[339807518,1727998243511,-1846.585318,0.00013529,2]
[339807519,1727998243521,-1846.585318,0.00013529,2]
[339807520,1727998243532,-1045.753443,0.00013529,2]
[339807521,1727998243543,-151.0,0.00013529,2]
[339807522,1727998243554,-1045.753443,0.00013529,2]
[339807523,1727998243564,-151.0,0.00013529,2]
[339807524,1727998243575,-679.611556,0.00013529,2]
[339807525,1727998243584,-679.611556,0.00013529,2]
[339807526,1727998243594,-952.505055,0.00013529,2]
[339807527,1727998243604,-952.505055,0.00013529,2]
[339807528,1727998243618,-490.432937,0.00013529,2]
[339807529,1727998243629,-490.432937,0.00013529,2]
[339807530,1727998243639,-490.432937,0.00013529,2]
[339807531,1727998243651,-490.432937,0.00013529,2]
[339807532,1727998243662,-774.167472,0.00013529,2]
[339807533,1727998243672,-774.167472,0.00013529,2]
[339807534,1727998243682,-151.0,0.00013529,2]
[339807535,1727998243693,-151.0,0.00013529,2]
[339807536,1727998243702,-151.0,0.00013529,2]
[339807537,1727998243712,-151.0,0.00013529,2]
[339807538,1727998243722,-151.0,0.00013529,2]
[339807539,1727998243731,-151.0,0.00013529,2]
[339807540,1727998243741,-151.0,0.00013529,2]
[339807541,1727998243753,-151.0,0.00013529,2]
[339807542,1727998243763,-151.0,0.00013529,2]
[339807543,1727998243773,-151.0,0.00013529,2]
[339807544,1727998243782,-1476.099036,0.00013529,2]
[339807545,1727998243792,-1476.099036,0.00013529,2]
[339807546,1727998243803,-212.824329,0.00013529,2]
[339807547,1727998243813,-212.824329,0.00013529,2]
[339807548,1727998243826,-151.0,0.00013529,2]
[339807549,1727998243839,-264.266205,0.00013529,2]
[339807550,1727998243849,-264.266205,0.00013529,2]
[339807551,1727998243858,-564.32057,0.00013529,2]
[339807552,1727998243868,-564.32057,0.00013529,2]
[339807553,1727998243878,-151.0,0.00013529,2]
[339807554,1727998243888,-151.0,0.00013529,2]
[339807555,1727998243898,-151.0,0.00013529,2]
[339807556,1727998243910,-196.084553,0.00013529,2]
[339807557,1727998243922,-196.084555,0.00013529,2]
[339807558,1727998243933,-288.036897,0.0001353,2]
[339807559,1727998243943,-1805.894111,0.0001353,2]
[339807560,1727998243955,-1805.894111,0.0001353,2]
[339807561,1727998243965,-1605.071196,0.00013531,2]
[339807562,1727998243974,-1605.071196,0.00013531,2]
[339807563,1727998243985,-370.149733,0.00013531,2]
[339807564,1727998243995,-151.0,0.00013531,2]
[339807565,1727998244005,-1846.585318,0.00013531,2]
[339807566,1727998244014,-1846.585318,0.00013531,2]
[339807567,1727998244024,-952.505055,0.00013531,2]
[339807568,1727998244035,-952.505055,0.00013531,2]
[339807569,1727998244045,-490.432937,0.00013531,2]
[339807570,1727998244055,-490.432937,0.00013531,2]
[339807571,1727998244065,-151.0,0.00013531,2]
[339807572,1727998244082,-151.0,0.00013531,2]
[339807573,1727998244091,-151.0,0.00013531,2]
[339807574,1727998244101,-216.951516,0.00013531,2]
[339807575,1727998244111,-151.0,0.00013531,2]
[339807576,1727998244120,-564.32057,0.00013531,2]
[339807577,1727998244130,-564.320571,0.00013531,2]
[339807578,1727998244139,-151.0,0.00013531,2]
[339807579,1727998244150,-151.0,0.00013531,2]
[339807580,1727998244159,-4952.7304872,0.00013531,2]
[339807581,1727998244169,-151.0,0.00013539,2]
[339807582,1727998244179,-151.0,0.00013539,2]
[339807583,1727998244188,-332.909155,0.00013539,2]
[339807584,1727998244198,-332.909155,0.00013539,2]
[339807585,1727998244207,-332.909155,0.00013539,2]
[339807586,1727998244217,-332.909155,0.00013539,2]
[339807587,1727998244227,-151.0,0.00013539,2]
[339807588,1727998244236,-151.0,0.00013539,2]
[339807589,1727998244245,-207.417891,0.00013539,2]
[339807590,1727998244255,-207.417891,0.00013539,2]
[339807591,1727998244266,-151.0,0.00013539,2]
[339807592,1727998244275,-151.0,0.00013539,2]
[339807593,1727998244285,-207.417891,0.00013539,2]
[339807594,1727998244295,-207.417891,0.00013539,2]
[339807595,1727998244305,-151.0,0.00013539,2]
[339807596,1727998244314,-151.0,0.00013539,2]
[339807597,1727998244326,-151.0,0.00013539,2]
[339807598,1727998244336,-1263.517645,0.00013539,2]
[339807599,1727998244346,-151.0,0.00013539,2]
[339807600,1727998244356,-151.0,0.00013539,2]
[339807601,1727998244366,-151.0,0.00013539,2]
[339807602,1727998244376,-151.0,0.00013539,2]
[339807603,1727998244385,-369.245172,0.00013539,2]
[339807604,1727998244395,-267.735556,0.00013539,2]
[339807605,1727998244404,-369.245172,0.00013539,2]
[339807606,1727998244414,-267.735556,0.00013539,2]
[339807607,1727998244425,-151.0,0.00013539,2]
[339807608,1727998244436,-151.0,0.00013539,2]
[339807609,1727998244447,-151.0,0.00013539,2]
[339807610,1727998244457,-647.541838,0.00013539,2]
[339807611,1727998244466,-647.541838,0.00013539,2]
[339807612,1727998244476,-151.0,0.00013539,2]
[339807613,1727998244485,-151.0,0.00013539,2]
[339807614,1727998244495,-151.0,0.00013539,2]
[339807615,1727998244505,-283.269682,0.00013539,2]
[339807616,1727998244515,-283.269682,0.00013539,2]
[339807617,1727998244525,-1605.071196,0.00013539,2]
[339807618,1727998244534,-1605.071196,0.00013539,2]
[339807619,1727998244543,-370.149733,0.00013539,2]
[339807620,1727998244554,-151.0,0.00013539,2]
[339807621,1727998244564,-362.588099,0.00013539,2]
[339807622,1727998244573,-362.588099,0.00013539,2]
[339807623,1727998244583,-151.0,0.00013539,2]
[339807624,1727998244592,-1846.585318,0.00013539,2]
[339807625,1727998244602,-1846.585318,0.00013539,2]
[339807626,1727998244611,-1045.753443,0.00013539,2]
[339807627,1727998244620,-151.0,0.00013539,2]
[339807628,1727998244630,-1045.753443,0.00013539,2]
[339807629,1727998244643,-151.0,0.00013539,2]
[339807630,1727998244654,-679.611556,0.00013539,2]
[339807631,1727998244664,-679.611556,0.00013539,2]
[339807632,1727998244673,-952.505055,0.00013539,2]
[339807633,1727998244683,-952.505055,0.00013539,2]
[339807634,1727998244692,-490.432937,0.00013539,2]
[339807635,1727998244702,-490.432937,0.00013539,2]
[339807636,1727998244711,-774.167472,0.00013539,2]
[339807637,1727998244720,-774.167472,0.00013539,2]
[339807638,1727998244730,-151.0,0.00013539,2]
[339807639,1727998244740,-151.0,0.00013539,2]
[339807640,1727998244749,-151.0,0.00013539,2]
[339807641,1727998244760,-154.789736,0.00013539,2]
[339807642,1727998244769,-151.0,0.00013539,2]
[339807643,1727998244779,-1476.099036,0.00013539,2]
[339807644,1727998244788,-1476.099036,0.00013539,2]
[339807645,1727998244798,-212.824329,0.00013539,2]
[339807646,1727998244807,-212.824329,0.00013539,2]
[339807647,1727998244817,-264.266205,0.00013539,2]
[339807648,1727998244827,-264.266205,0.00013539,2]
[339807649,1727998244837,-151.0,0.00013539,2]
[339807650,1727998244847,-151.0,0.00013539,2]
[339807651,1727998244856,-151.0,0.00013541,2]
[339807652,1727998244866,-151.0,0.00013541,2]
[339807653,1727998244876,-1263.517645,0.00013541,2]
[339807654,1727998244886,-1263.517645,0.00013541,2]
[339807655,1727998244896,-151.0,0.00013541,2]
[339807656,1727998244905,-151.0,0.00013541,2]
[339807657,1727998244919,-151.0,0.00013541,2]
[339807658,1727998244928,-151.0,0.00013541,2]
[339807659,1727998244938,-173.43192,0.00013541,2]
[339807660,1727998244950,-151.0,0.00013541,2]
[339807661,1727998244960,-153.305633,0.00013541,2]
[339807662,1727998244970,-369.245172,0.00013541,2]
[339807663,1727998244980,-369.245172,0.00013541,2]
[339807664,1727998244991,-267.735556,0.00013541,2]
[339807665,1727998245000,-267.735556,0.00013541,2]
[339807666,1727998245012,-369.245172,0.00013541,2]
[339807667,1727998245023,-267.735556,0.00013541,2]
[339807668,1727998245033,-369.245172,0.00013541,2]
[339807669,1727998245043,-267.735556,0.00013541,2]
[339807670,1727998245055,-151.0,0.00013541,2]
[339807671,1727998245065,-151.0,0.00013541,2]
[339807672,1727998245074,-151.0,0.00013541,2]
[339807673,1727998245084,-151.0,0.00013541,2]
[339807674,1727998245094,-207.537904,0.00013541,2]
[339807675,1727998245103,-647.541838,0.00013541,2]
[339807676,1727998245113,-647.541838,0.00013541,2]
[339807677,1727998245122,-647.541838,0.00013541,2]
[339807678,1727998245132,-647.541838,0.00013541,2]
[339807679,1727998245141,-151.0,0.00013541,2]
[339807680,1727998245151,-151.0,0.00013541,2]
[339807681,1727998245160,-151.0,0.00013541,2]
[339807682,1727998245170,-283.269682,0.00013541,2]
[339807683,1727998245179,-283.269682,0.00013541,2]
[339807684,1727998245189,-283.269682,0.00013541,2]
[339807685,1727998245199,-283.269682,0.00013541,2]
[339807686,1727998245208,-1605.071196,0.00013541,2]
[339807687,1727998245219,-1605.071196,0.00013541,2]
[339807688,1727998245228,-1605.071196,0.00013541,2]
[339807689,1727998245239,-1605.071196,0.00013541,2]
[339807690,1727998245250,-1605.071196,0.00013541,2]
[339807691,1727998245260,-370.149733,0.00013541,2]
[339807692,1727998245270,-1605.071196,0.00013541,2]
[339807693,1727998245279,-1605.071196,0.00013541,2]
[339807694,1727998245289,-1605.071196,0.00013541,2]
[339807695,1727998245299,-370.149733,0.00013541,2]
[339807696,1727998245309,-370.149733,0.00013541,2]
[339807697,1727998245321,-370.149733,0.00013541,2]
[339807698,1727998245331,-370.149733,0.00013541,2]
[339807699,1727998245341,-151.0,0.00013541,2]
[339807700,1727998245352,-151.0,0.00013541,2]
[339807701,1727998245362,-362.588099,0.00013541,2]
[339807702,1727998245372,-362.588099,0.00013541,2]
[339807703,1727998245382,-362.588099,0.00013541,2]
[339807704,1727998245391,-362.588099,0.00013541,2]
[339807705,1727998245403,-151.0,0.00013541,2]
[339807706,1727998245414,-151.0,0.00013541,2]
[339807707,1727998245424,-1846.585318,0.00013541,2]
[339807708,1727998245434,-1846.585318,0.00013541,2]
[339807709,1727998245445,-1846.585318,0.00013541,2]
[339807710,1727998245455,-1846.585319,0.00013541,2]
[339807711,1727998245465,-1045.753443,0.00013541,2]
[339807712,1727998245475,-1045.753443,0.00013541,2]
[339807713,1727998245484,-151.0,0.00013541,2]
[339807714,1727998245494,-1045.753443,0.00013541,2]
[339807715,1727998245504,-1045.753443,0.00013541,2]
[339807716,1727998245514,-151.0,0.00013541,2]
[339807717,1727998245526,-679.611556,0.00013541,2]
[339807718,1727998245536,-679.611556,0.00013541,2]
[339807719,1727998245548,-679.611556,0.00013541,2]
[339807720,1727998245559,-679.611556,0.00013541,2]
[339807721,1727998245568,-952.505055,0.00013541,2]
[339807722,1727998245579,-952.505055,0.00013541,2]
[339807723,1727998245588,-952.505055,0.00013541,2]
[339807724,1727998245598,-952.505057,0.00013541,2]
[339807725,1727998245608,-490.432937,0.00013541,2]
[339807726,1727998245619,-490.432933,0.00013541,2]
[339807727,1727998245629,-774.167472,0.00013541,2]
[339807728,1727998245640,-774.167472,0.00013541,2]
[339807729,1727998245650,-774.167472,0.00013541,2]
[339807730,1727998245660,-774.167472,0.00013541,2]
[339807731,1727998245670,-151.0,0.00013541,2]
[339807732,1727998245679,-151.0,0.00013541,2]
[339807733,1727998245689,-151.0,0.00013541,2]
[339807734,1727998245699,-151.0,0.00013541,2]
[339807735,1727998245708,-1476.099036,0.00013541,2]
[339807736,1727998245717,-1476.099036,0.00013541,2]
[339807737,1727998245727,-1476.099036,0.00013541,2]
[339807738,1727998245737,-1476.09904,0.00013541,2]
[339807739,1727998245748,-212.824329,0.00013541,2]
[339807740,1727998245758,-212.824337,0.00013541,2]
[339807741,1727998245767,-264.266205,0.00013541,2]
[339807743,1727998245777,-264.266208,0.00013541,2]
[339807745,1727998245787,-151.0,0.00013541,2]
[339807747,1727998245797,-1019.25920987,0.00013551,2]
[339807748,1727998245808,-151.0,0.00013551,2]
[339807750,1727998245817,-151.0,0.00013551,2]
[339807752,1727998245828,-332.909155,0.00013551,2]
[339807753,1727998245838,-332.909155,0.00013551,2]
[339807755,1727998245847,-332.909155,0.00013551,2]
[339807756,1727998245858,-332.909155,0.00013551,2]
[339807757,1727998245868,-151.0,0.00013551,2]
[339807758,1727998245879,-151.0,0.00013551,2]
[339807759,1727998245888,-207.417891,0.00013551,2]
[339807760,1727998245898,-207.417891,0.00013551,2]
[339807761,1727998245909,-151.0,0.00013551,2]
[339807762,1727998245924,-151.0,0.00013551,2]
[339807763,1727998245934,-207.417891,0.00013551,2]
[339807764,1727998245944,-207.417891,0.00013551,2]
[339807765,1727998245955,-151.0,0.00013551,2]
[339807766,1727998245965,-151.0,0.00013551,2]
[339807767,1727998245975,-1805.894111,0.00013551,2]
[339807768,1727998245985,-1805.894111,0.00013551,2]
[339807769,1727998245996,-151.0,0.00013551,2]
[339807770,1727998246006,-151.0,0.00013551,2]
[339807771,1727998246016,-151.0,0.00013551,2]
[339807772,1727998246026,-151.0,0.00013551,2]
[339807777,1727998246181,-440.229624,0.00013551,2]
[339807778,1727998246191,-440.229624,0.00013551,2]
[339807779,1727998246200,-440.229624,0.00013551,2]
[339807781,1727998246209,-440.229624,0.00013551,2]
[339807783,1727998246219,-199.404599,0.00013551,2]
[339807784,1727998246229,-1263.517645,0.00013551,2]
[339807785,1727998246239,-1263.517645,0.00013551,2]
[339807786,1727998246248,-1263.517645,0.00013551,2]
[339807787,1727998246258,-196.161131,0.00013551,2]
[339807788,1727998246268,-196.161131,0.00013551,2]
[339807789,1727998246277,-196.161131,0.00013551,2]
[339807790,1727998246287,-196.161131,0.00013551,2]
[339807791,1727998246297,-197.059474,0.00013551,2]
[339807792,1727998246306,-197.059474,0.00013551,2]
[339807793,1727998246315,-197.059474,0.00013551,2]
[339807794,1727998246326,-197.059474,0.00013551,2]
[339807795,1727998246335,-151.0,0.00013551,2]
[339807796,1727998246344,-151.0,0.00013551,2]
[339807797,1727998246355,-151.0,0.00013551,2]
[339807798,1727998246364,-369.245172,0.00013551,2]
[339807799,1727998246373,-369.245172,0.00013551,2]
[339807800,1727998246383,-267.735556,0.00013551,2]
[339807801,1727998246392,-369.245172,0.00013551,2]
[339807802,1727998246401,-369.245172,0.00013551,2]
[339807803,1727998246411,-267.735556,0.00013551,2]
[339807804,1727998246420,-267.735556,0.00013551,2]
[339807806,1727998246429,-369.245172,0.00013551,2]
[339807807,1727998246438,-267.735556,0.00013551,2]
[339807808,1727998246447,-369.245172,0.00013551,2]
[339807809,1727998246456,-267.735556,0.00013551,2]
[339807810,1727998246466,-369.245172,0.00013551,2]
[339807811,1727998246475,-267.735556,0.00013551,2]
[339807812,1727998246485,-369.245172,0.00013551,2]
[339807813,1727998246494,-276.879989,0.00013551,2]
[339807814,1727998246503,-151.0,0.00013551,2]
[339807815,1727998246512,-151.0,0.00013551,2]
[339807816,1727998246522,-151.0,0.00013551,2]
[339807817,1727998246531,-151.0,0.00013551,2]
[339807818,1727998246541,-647.541838,0.00013551,2]
[339807819,1727998246550,-647.541838,0.00013551,2]
[339807820,1727998246559,-647.541838,0.00013551,2]
[339807821,1727998246569,-647.541838,0.00013551,2]
[339807822,1727998246581,-647.541838,0.00013551,2]
[339807823,1727998246597,-647.541838,0.00013551,2]
[339807824,1727998246607,-151.0,0.00013551,2]
[339807825,1727998246618,-151.0,0.00013551,2]
[339807826,1727998246628,-151.0,0.00013551,2]
[339807827,1727998246638,-151.0,0.00013551,2]
[339807828,1727998246649,-151.0,0.00013551,2]
[339807829,1727998246658,-151.0,0.00013551,2]
[339807830,1727998246667,-151.0,0.00013551,2]
[339807831,1727998246676,-151.0,0.00013551,2]
[339807832,1727998246686,-151.0,0.00013551,2]
[339807833,1727998246695,-151.0,0.00013551,2]
[339807834,1727998246704,-152.9255,0.00013551,2]
[339807835,1727998246714,-283.269682,0.00013551,2]